fUST/lending_fUST_20240120
["ID","MTS","AMOUNT","RATE_DAILY","PERIOD"]
[312233822,1705697444992,-154.43137173,0.00039997,7]
[312233823,1705697445001,-154.76784823,0.0004,4]
[312233824,1705697445010,-850.63217499,0.0004,4]
[312233825,1705697445019,-1279.77486636,0.0004,4]
[312233826,1705697445029,-738.21745296,0.0004,2]
[312233827,1705697445038,-65875.72020649,0.0004,2]
[312233828,1705697445047,-5000.0,0.0004,2]
[312233829,1705697445057,-515.79921932,0.0004,5]
[312233830,1705697445066,-719.54990507,0.0004,2]
[312233831,1705697445076,-18893.38699722,0.0004,15]
[312233832,1705697445085,-2717.17891951,0.0004,2]
[312233833,1705697445094,-301.95296017,0.0004,2]
[312233834,1705697445103,-16209.54378487,0.0004,10]
[312233835,1705697445113,-168.24776074,0.0004,2]
[312233836,1705697445122,-289.99999618,0.0004,4]
[312233837,1705697445131,-980.54976185,0.0004,60]
[312233839,1705697445140,-500.0,0.0004,10]
[312233841,1705697445149,-31972.37287041,0.0004,4]
[312233843,1705697445159,-192.85996915,0.0004,2]
[312233845,1705697445168,-249.3420013,0.0004,2]
[312233847,1705697445178,-1817.14165864,0.0004,30]
[312233848,1705697445187,-154.86062544,0.0004,4]
[312233850,1705697445197,-1000.0,0.0004,40]
[312233852,1705697445206,-1095.11434641,0.0004,2]
[312233854,1705697445215,-59148.7187796,0.0004,5]
[312233856,1705697445224,-151.0,0.0004,2]
[312233858,1705697445233,-151.0,0.0004,2]
[312233860,1705697445242,-288.0,0.0004,2]
[312233862,1705697445251,-229.350845,0.0004,2]
[312233864,1705697445260,-151.0,0.0004,2]
[312233866,1705697445270,-151.0,0.0004,2]
[312233868,1705697445279,-151.0,0.0004,2]
[312233870,1705697445288,-151.0,0.0004,2]
[312233872,1705697445297,-151.0,0.0004,2]
[312233874,1705697445305,-600.0,0.0004,30]
[312233876,1705697445314,-161.882638,0.0004,2]
[312233878,1705697445323,-411.419243,0.0004,2]
[312233880,1705697445332,-411.419243,0.0004,2]
[312233882,1705697445341,-411.419243,0.0004,2]
[312233884,1705697445351,-411.419243,0.0004,2]
[312233886,1705697445360,-2000.0,0.0004,32]
[312233888,1705697445368,-1265.817322,0.0004,2]
[312233890,1705697445377,-1265.817322,0.0004,2]
[312233892,1705697445386,-1265.817322,0.0004,2]
[312233894,1705697445394,-1265.817322,0.0004,2]
[312233896,1705697445403,-10000.0,0.0004,2]
[312233898,1705697445413,-10000.0,0.0004,2]
[312233900,1705697445422,-10000.0,0.0004,2]
[312233902,1705697445431,-10000.0,0.0004,2]
[312233904,1705697445440,-10000.0,0.0004,2]
[312233906,1705697445449,-10000.0,0.0004,2]
[312233908,1705697445458,-957.12353842,0.0004,2]
[312233910,1705697445466,-2000.0,0.0004001,32]
[312233912,1705697445475,-2014.079604,0.0004002,32]
[312233914,1705697445484,-151.0,0.00040083,21]
[312233916,1705697445493,-159.79980507,0.00040107,30]
[312233918,1705697445502,-159.79980507,0.0004015,30]
[312233920,1705697445511,-154.43137173,0.00040156,30]
[312233922,1705697445520,-154.43137173,0.00040174,30]
[312233924,1705697445529,-200.32499158,0.00040258,30]
[312233926,1705697445540,-159.79980507,0.00040352,30]
[312233927,1705697445549,-159.79980507,0.00040517,30]
[312233929,1705697445558,-200.0,0.00040621,30]
[312233931,1705697445568,-200.0,0.00040621,30]
[312233933,1705697445577,-200.0,0.00040621,30]
[312233935,1705697445588,-200.0,0.00040621,30]
[312233937,1705697445597,-200.0,0.00040621,30]
[312233939,1705697445607,-200.0,0.00040621,30]
[312233942,1705697445616,-305.0,0.00040621,30]
[312233943,1705697445625,-159.79980507,0.00040646,30]
[312233945,1705697445635,-1500.0,0.0004074,7]
[312233947,1705697445644,-151.0,0.00040792,21]
[312233949,1705697445652,-229.350845,0.00040822,2]
[312233951,1705697445663,-154.43137173,0.00040831,30]
[312233953,1705697445671,-154.43137173,0.00040847,30]
[312233955,1705697445680,-159.79980507,0.00040916,30]
[312233957,1705697445690,-475.35402046,0.00040967,10]
[312233959,1705697445699,-475.35402046,0.00040989,10]
[312233961,1705697445708,-475.35402046,0.00040989,10]
[312233963,1705697445717,-475.35402046,0.00040999,10]
[312233972,1705697445783,-157.00534971,0.00040999,30]
[312233974,1705697445793,-4465.02696089,0.00041,10]
[312233976,1705697445802,-7303.20278516,0.00041,2]
[312233978,1705697445812,-2500.0,0.00041,14]
[312233981,1705697445821,-23089.77738238,0.00041,10]
[312233982,1705697445831,-860.55209277,0.00041,15]
[312233984,1705697445841,-4610.86980662,0.00041,15]
[312233987,1705697445851,-661.26421069,0.00041,15]
[312233988,1705697445860,-600.0,0.00041014,30]
[312233990,1705697445869,-150.0,0.00041052,2]
[312233992,1705697445879,-782.0,0.0004107,30]
[312233995,1705697445889,-154.0,0.0004107,30]
[312233996,1705697445898,-154.0,0.0004108,30]
[312233999,1705697445907,-782.0,0.0004108,30]
[312234001,1705697445917,-150.84915085,0.00041087,2]
[312234002,1705697445926,-250.24063936,0.00041087,2]
[312234004,1705697445935,-500.0,0.00041095,31]
[312234006,1705697445944,-189.86041658,0.00041095,10]
[312234008,1705697445954,-500.0,0.00041095,31]
[312234010,1705697445963,-500.0,0.00041095,31]
[312234012,1705697445973,-2533.94121818,0.00041095,7]
[312234014,1705697445982,-642.04263238,0.00041095,31]
[312234016,1705697445991,-500.0,0.00041095,31]
[312234018,1705697446000,-500.0,0.00041095,31]
[312234020,1705697446009,-500.0,0.00041095,31]
[312234022,1705697446018,-500.0,0.00041095,31]
[312234024,1705697446028,-500.0,0.00041095,31]
[312234026,1705697446037,-420.7686918,0.00041095,31]
[312234028,1705697446047,-581.02,0.00041095,31]
[312234030,1705697446057,-500.0,0.00041095,31]
[312234032,1705697446066,-500.0,0.00041095,31]
[312234034,1705697446075,-500.0,0.00041095,31]
[312234036,1705697446084,-500.0,0.00041095,31]
[312234038,1705697446093,-287.43882541,0.00041095,31]
[312234040,1705697446102,-500.0,0.00041095,31]
[312234042,1705697446111,-500.0,0.00041095,31]
[312234044,1705697446120,-500.0,0.00041095,31]
[312234046,1705697446129,-500.0,0.00041095,31]
[312234048,1705697446138,-1000.0,0.00041095,2]
[312234050,1705697446147,-165.70706234,0.00041095,31]
[312234052,1705697446158,-503.80379384,0.00041095,31]
[312234054,1705697446167,-500.0,0.00041095,31]
[312234056,1705697446176,-500.0,0.00041095,31]
[312234058,1705697446185,-500.0,0.00041095,31]
[312234060,1705697446194,-500.0,0.00041095,31]
[312234062,1705697446203,-500.0,0.00041095,31]
[312234064,1705697446212,-500.0,0.00041095,31]
[312234066,1705697446222,-500.0,0.00041095,31]
[312234068,1705697446231,-500.0,0.00041095,31]
[312234070,1705697446240,-500.0,0.00041095,31]
[312234072,1705697446249,-502.97710303,0.00041095,31]
[312234074,1705697446259,-205.03382003,0.00041095,31]
[312234076,1705697446268,-500.0,0.00041095,31]
[312234078,1705697446277,-500.0,0.00041095,31]
[312234080,1705697446287,-295.69861919,0.00041095,31]
[312234082,1705697446296,-500.0,0.00041095,31]
[312234084,1705697446305,-500.0,0.00041095,31]
[312234086,1705697446314,-500.0,0.00041095,14]
[312234087,1705697446323,-500.0,0.00041095,31]
[312234090,1705697446333,-500.0,0.00041095,31]
[312234092,1705697446343,-200.0236592,0.00041095,30]
[312234094,1705697446352,-500.0,0.00041095,31]
[312234095,1705697446362,-500.0,0.00041095,31]
[312234097,1705697446372,-500.0,0.00041095,31]
[312234099,1705697446382,-602.61739208,0.00041095,31]
[312234101,1705697446390,-500.0,0.00041095,31]
[312234103,1705697446400,-500.0,0.00041095,31]
[312234105,1705697446409,-500.0,0.00041095,31]
[312234107,1705697446419,-500.0,0.00041095,31]
[312234109,1705697446428,-500.0,0.00041095,31]
[312234111,1705697446437,-500.0,0.00041095,31]
[312234113,1705697446447,-155.59092002,0.00041095,10]
[312234115,1705697446457,-500.0,0.00041095,31]
[312234117,1705697446466,-500.0,0.00041095,31]
[312234119,1705697446475,-567.58588332,0.00041095,31]
[312234121,1705697446484,-500.0,0.00041095,31]
[312234123,1705697446493,-500.0,0.00041095,31]
[312234125,1705697446502,-500.0,0.00041095,31]
[312234127,1705697446512,-500.0,0.00041095,31]
[312234129,1705697446521,-500.0,0.00041095,31]
[312234131,1705697446530,-500.0,0.00041095,31]
[312234133,1705697446540,-500.0,0.00041095,7]
[312234135,1705697446549,-500.0,0.00041095,31]
[312234137,1705697446560,-500.0,0.00041095,7]
[312234139,1705697446570,-500.0,0.00041095,31]
[312234141,1705697446579,-537.74633655,0.00041095,7]
[312234143,1705697446588,-500.0,0.00041095,31]
[312234145,1705697446597,-500.0,0.00041095,31]
[312234147,1705697446606,-500.0,0.00041095,31]
[312234149,1705697446616,-500.0,0.00041095,31]
[312234151,1705697446625,-500.0,0.00041095,31]
[312234153,1705697446636,-500.0,0.00041095,31]
[312234155,1705697446647,-500.0,0.00041095,31]
[312234157,1705697446656,-500.0,0.00041095,31]
[312234159,1705697446665,-444.64232595,0.00041095,31]
[312234161,1705697446674,-500.0,0.00041095,31]
[312234163,1705697446683,-194.81288984,0.00041095,31]
[312234165,1705697446693,-174.6243154,0.00041095,31]
[312234167,1705697446702,-500.0,0.00041095,31]
[312234169,1705697446710,-500.0,0.00041095,31]
[312234171,1705697446719,-415.12126942,0.00041095,31]
[312234172,1705697446729,-500.0,0.00041095,31]
[312234175,1705697446738,-506.47953687,0.00041095,31]
[312234176,1705697446747,-500.0,0.00041095,31]
[312234178,1705697446757,-500.0,0.00041095,31]
[312234180,1705697446766,-150.0,0.00041095,31]
[312234182,1705697446775,-500.0,0.00041095,31]
[312234184,1705697446784,-500.77772675,0.00041095,31]
[312234186,1705697446794,-1750.0,0.00041095,7]
[312234188,1705697446803,-350.66557891,0.00041095,31]
[312234190,1705697446812,-500.0,0.00041095,31]
[312234192,1705697446821,-500.0,0.00041095,31]
[312234200,1705697446884,-500.0,0.00041095,7]
[312234202,1705697446894,-500.0,0.00041095,2]
[312234204,1705697446903,-500.0,0.00041095,31]
[312234206,1705697446914,-221.96221791,0.00041095,31]
[312234208,1705697446922,-500.0,0.00041095,31]
[312234210,1705697446932,-528.56,0.00041095,31]
[312234212,1705697446942,-500.0,0.00041095,31]
[312234214,1705697446951,-500.0,0.00041095,31]
[312234216,1705697446960,-500.0,0.00041095,31]
[312234218,1705697446970,-500.0,0.00041095,31]
[312234220,1705697446979,-168.23707724,0.00041095,31]
[312234222,1705697446988,-500.0,0.00041095,31]
[312234224,1705697446997,-500.73985236,0.00041095,31]
[312234226,1705697447006,-500.0,0.00041095,31]
[312234228,1705697447015,-620.00313408,0.00041095,31]
[312234230,1705697447025,-554.49,0.00041095,31]
[312234232,1705697447034,-500.0,0.00041095,31]
[312234234,1705697447043,-500.0,0.00041095,31]
[312234236,1705697447052,-516.44521209,0.00041095,31]
[312234238,1705697447061,-500.0,0.00041095,31]
[312234240,1705697447071,-500.0,0.00041095,7]
[312234242,1705697447080,-200.0,0.00041095,31]
[312234244,1705697447089,-500.0,0.00041095,31]
[312234246,1705697447098,-500.0,0.00041095,31]
[312234248,1705697447107,-566.20159311,0.00041095,31]
[312234250,1705697447116,-500.0,0.00041095,31]
[312234252,1705697447126,-502.28877246,0.00041095,31]
[312234254,1705697447135,-206.74901776,0.00041095,10]
[312234256,1705697447144,-539.01197473,0.00041095,31]
[312234258,1705697447155,-525.01,0.00041095,31]
[312234260,1705697447165,-504.79067501,0.00041095,31]
[312234262,1705697447174,-635.85140251,0.00041095,31]
[312234264,1705697447184,-500.0,0.00041095,31]
[312234266,1705697447193,-500.0,0.00041095,31]
[312234268,1705697447202,-500.0,0.00041095,31]
[312234270,1705697447211,-500.0,0.00041095,31]
[312234272,1705697447221,-500.0,0.00041095,31]
[312234273,1705697447230,-500.0,0.00041095,31]
[312234275,1705697447239,-500.0,0.00041095,31]
[312234278,1705697447249,-446.21201326,0.00041095,31]
[312234280,1705697447258,-500.0,0.00041095,31]
[312234281,1705697447267,-431.15991902,0.00041095,2]
[312234283,1705697447277,-500.0,0.00041095,31]
[312234286,1705697447286,-895.14,0.00041095,31]
[312234288,1705697447296,-180.35298361,0.00041095,31]
[312234289,1705697447305,-500.0,0.00041095,31]
[312234291,1705697447315,-500.0,0.00041095,31]
[312234293,1705697447324,-500.0,0.00041095,31]
[312234295,1705697447333,-500.0,0.00041095,31]
[312234297,1705697447342,-500.0,0.00041095,31]
[312234299,1705697447351,-500.0,0.00041095,31]
[312234301,1705697447361,-500.0,0.00041095,31]
[312234303,1705697447370,-500.0,0.00041095,31]
[312234305,1705697447378,-500.0,0.00041095,31]
[312234307,1705697447387,-500.0,0.00041095,31]
[312234309,1705697447396,-500.0,0.00041095,31]
[312234311,1705697447404,-500.13620846,0.00041095,31]
[312234313,1705697447414,-500.0,0.00041095,31]
[312234315,1705697447423,-500.0,0.00041095,31]
[312234317,1705697447432,-500.0,0.00041095,31]
[312234319,1705697447441,-500.0,0.00041095,31]
[312234320,1705697447450,-647.47145029,0.00041095,31]
[312234321,1705697447459,-500.0,0.00041095,31]
[312234322,1705697447469,-574.52467871,0.00041095,31]
[312234323,1705697447478,-500.0,0.00041095,31]
[312234324,1705697447487,-500.0,0.00041095,31]
[312234325,1705697447496,-500.0,0.00041095,31]
[312234327,1705697447505,-500.0,0.00041095,31]
[312234329,1705697447514,-500.0,0.00041095,31]
[312234331,1705697447523,-500.0,0.00041095,31]
[312234333,1705697447532,-500.0,0.00041095,31]
[312234335,1705697447544,-500.0,0.00041095,31]
[312234337,1705697447553,-523.08396244,0.00041095,31]
[312234339,1705697447562,-1000.0,0.00041095,2]
[312234341,1705697447571,-500.0,0.00041095,31]
[312234343,1705697447581,-500.0,0.00041095,31]
[312234345,1705697447590,-542.29561648,0.00041095,31]
[312234347,1705697447599,-303.17205619,0.00041095,10]
[312234349,1705697447607,-500.0,0.00041095,31]
[312234351,1705697447617,-500.0,0.00041095,31]
[312234353,1705697447627,-500.0,0.00041095,31]
[312234355,1705697447639,-500.0,0.00041095,31]
[312234357,1705697447650,-500.0,0.00041095,31]
[312234359,1705697447659,-500.0,0.00041095,31]
[312234361,1705697447668,-500.0,0.00041095,31]
[312234363,1705697447677,-500.0,0.00041095,31]
[312234365,1705697447686,-500.0,0.00041095,31]
[312234367,1705697447695,-500.0,0.00041095,31]
[312234369,1705697447704,-500.0,0.00041095,31]
[312234371,1705697447713,-462.60822105,0.00041095,31]
[312234373,1705697447722,-500.0,0.00041095,31]
[312234375,1705697447731,-500.0,0.00041095,31]
[312234377,1705697447740,-500.0,0.00041095,31]
[312234379,1705697447750,-500.0,0.00041095,31]
[312234381,1705697447759,-500.0,0.00041095,31]
[312234383,1705697447768,-500.0,0.00041095,31]
[312234385,1705697447777,-257.73105727,0.00041095,31]
[312234387,1705697447786,-533.46,0.00041095,31]
[312234389,1705697447795,-500.0,0.00041095,31]
[312234391,1705697447804,-607.03,0.00041095,31]
[312234393,1705697447813,-500.0,0.00041095,31]
[312234395,1705697447822,-500.0,0.00041095,30]
[312234397,1705697447831,-500.0,0.00041095,30]
[312234399,1705697447840,-500.0,0.00041095,30]
[312234407,1705697447904,-500.0,0.00041095,30]
[312234410,1705697447914,-500.0,0.00041095,30]
[312234412,1705697447923,-500.37576794,0.00041095,31]
[312234413,1705697447932,-501.41665242,0.00041095,31]
[312234415,1705697447942,-500.0,0.00041095,31]
[312234417,1705697447951,-500.0,0.00041095,31]
[312234419,1705697447960,-500.0,0.00041095,31]
[312234421,1705697447970,-500.0,0.00041095,31]
[312234424,1705697447980,-502.0314944,0.00041095,31]
[312234426,1705697447989,-500.0,0.00041095,31]
[312234428,1705697447998,-500.0,0.00041095,31]
[312234430,1705697448008,-535.12902412,0.00041095,31]
[312234432,1705697448017,-500.0,0.00041095,31]
[312234433,1705697448026,-858.54438277,0.00041095,7]
[312234435,1705697448036,-500.0,0.00041095,31]
[312234437,1705697448045,-330.77387985,0.00041095,31]
[312234439,1705697448054,-500.0,0.00041095,31]
[312234442,1705697448064,-500.0,0.00041095,31]
[312234444,1705697448073,-508.39221343,0.00041095,31]
[312234446,1705697448083,-500.0,0.00041095,31]
[312234448,1705697448091,-500.0,0.00041095,31]
[312234450,1705697448101,-443.30040039,0.00041095,3]
[312234452,1705697448110,-500.0,0.00041095,31]
[312234453,1705697448119,-500.0,0.00041095,31]
[312234455,1705697448128,-500.0,0.00041095,31]
[312234457,1705697448138,-500.0,0.00041095,31]
[312234460,1705697448147,-500.0,0.00041095,31]
[312234462,1705697448156,-500.0,0.00041095,31]
[312234464,1705697448166,-500.0,0.00041095,31]
[312234466,1705697448175,-500.0,0.00041095,31]
[312234468,1705697448185,-500.0,0.00041095,31]
[312234470,1705697448194,-500.0,0.00041095,31]
[312234472,1705697448203,-500.0,0.00041095,31]
[312234474,1705697448212,-500.0,0.00041095,31]
[312234476,1705697448221,-220.0,0.00041095,2]
[312234478,1705697448230,-182.80947998,0.00041095,31]
[312234480,1705697448239,-597.25,0.00041095,31]
[312234482,1705697448249,-501.88135404,0.00041095,31]
[312234484,1705697448258,-500.0,0.00041095,31]
[312234486,1705697448267,-500.0,0.00041095,31]
[312234488,1705697448276,-500.0,0.00041095,2]
[312234490,1705697448285,-1019.52145454,0.00041095,7]
[312234491,1705697448294,-505.83850922,0.00041095,31]
[312234494,1705697448304,-500.0,0.00041095,31]
[312234495,1705697448313,-506.35665942,0.00041095,31]
[312234497,1705697448322,-500.0,0.00041095,2]
[312234499,1705697448331,-244.13963307,0.00041095,10]
[312234501,1705697448340,-500.0,0.00041095,31]
[312234503,1705697448350,-1000.0,0.00041095,2]
[312234505,1705697448359,-500.0,0.00041095,31]
[312234508,1705697448368,-500.0,0.00041095,31]
[312234510,1705697448378,-330.86630192,0.00041095,31]
[312234512,1705697448387,-500.0,0.00041095,31]
[312234514,1705697448396,-500.0,0.00041095,31]
[312234516,1705697448407,-773.19,0.00041095,31]
[312234518,1705697448415,-500.0,0.00041095,31]
[312234520,1705697448424,-355.82780142,0.00041095,31]
[312234522,1705697448433,-500.0,0.00041095,31]
[312234524,1705697448445,-500.0,0.00041095,2]
[312234526,1705697448453,-500.0,0.00041095,31]
[312234528,1705697448462,-500.0,0.00041095,31]
[312234530,1705697448471,-500.0,0.00041095,31]
[312234532,1705697448481,-500.0,0.00041095,31]
[312234534,1705697448490,-500.99613015,0.00041095,31]
[312234536,1705697448499,-752.68,0.00041095,31]
[312234538,1705697448509,-334.15306829,0.00041095,31]
[312234540,1705697448518,-567.13,0.00041095,31]
[312234542,1705697448527,-500.0,0.00041095,31]
[312234544,1705697448536,-500.0,0.00041095,31]
[312234546,1705697448545,-1004.24,0.00041095,31]
[312234548,1705697448555,-1004.24,0.00041095,31]
[312234550,1705697448564,-1004.24,0.00041095,31]
[312234552,1705697448573,-197.43911502,0.00041095,31]
[312234554,1705697448582,-1004.24,0.00041095,31]
[312234556,1705697448591,-1004.24,0.00041095,31]
[312234558,1705697448601,-625.55917196,0.00041095,31]
[312234560,1705697448610,-1004.24,0.00041095,31]
[312234562,1705697448619,-1004.24,0.00041095,31]
[312234564,1705697448629,-1004.24,0.00041095,31]
[312234566,1705697448638,-1004.24,0.00041095,31]
[312234568,1705697448647,-1004.24,0.00041095,31]
[312234570,1705697448658,-500.0,0.00041095,31]
[312234572,1705697448667,-500.0,0.00041095,31]
[312234574,1705697448676,-803.66,0.00041095,31]
[312234576,1705697448685,-1004.24,0.00041095,31]
[312234578,1705697448694,-1004.24,0.00041095,31]
[312234580,1705697448703,-1004.24,0.00041095,31]
[312234582,1705697448712,-1004.24,0.00041095,31]
[312234584,1705697448722,-1004.24,0.00041095,31]
[312234586,1705697448731,-1004.24,0.00041095,31]
[312234588,1705697448739,-1004.24,0.00041095,31]
[312234590,1705697448748,-500.0,0.00041095,31]
[312234592,1705697448757,-1004.24,0.00041095,31]
[312234593,1705697448766,-1004.24,0.00041095,31]
[312234595,1705697448779,-1004.24,0.00041095,31]
[312234603,1705697448847,-1004.24,0.00041095,31]
[312234605,1705697448857,-1004.24,0.00041095,31]
[312234607,1705697448866,-1004.24,0.00041095,31]
[312234609,1705697448875,-1004.27816238,0.00041095,31]
[312234611,1705697448884,-500.0,0.00041095,31]
[312234613,1705697448894,-500.0,0.00041095,31]
[312234615,1705697448903,-500.0,0.00041095,31]
[312234617,1705697448914,-500.0,0.00041095,31]
[312234619,1705697448924,-1003.95,0.00041095,31]
[312234621,1705697448933,-500.0,0.00041095,31]
[312234623,1705697448942,-508.82301364,0.00041095,31]
[312234625,1705697448951,-504.5730539,0.00041095,31]
[312234627,1705697448961,-500.0,0.00041095,31]
[312234629,1705697448969,-500.0,0.00041095,31]
[312234631,1705697448979,-500.0,0.00041095,31]
[312234633,1705697448988,-500.0,0.00041095,31]
[312234635,1705697448997,-500.0,0.00041095,31]
[312234637,1705697449007,-1062.0,0.00041095,31]
[312234639,1705697449017,-460.93815917,0.00041095,31]
[312234641,1705697449026,-500.0,0.00041095,31]
[312234643,1705697449035,-405.15774271,0.00041095,31]
[312234645,1705697449044,-5057.44,0.00041095,31]
[312234647,1705697449054,-500.0,0.00041095,31]
[312234649,1705697449063,-504.89253781,0.00041095,31]
[312234651,1705697449073,-500.36215985,0.00041095,31]
[312234653,1705697449082,-428.00989318,0.00041095,2]
[312234655,1705697449091,-1297.74,0.00041095,31]
[312234657,1705697449100,-500.64880738,0.00041095,31]
[312234659,1705697449109,-500.0,0.00041095,31]
[312234661,1705697449119,-536.54378971,0.00041095,31]
[312234663,1705697449128,-500.0,0.00041095,31]
[312234665,1705697449137,-503.86239034,0.00041095,31]
[312234667,1705697449146,-500.0,0.00041095,31]
[312234669,1705697449155,-242.08366512,0.00041095,10]
[312234671,1705697449164,-500.0,0.00041095,31]
[312234673,1705697449173,-500.0,0.00041095,31]
[312234675,1705697449182,-1104.48,0.00041095,31]
[312234677,1705697449191,-500.0,0.00041095,31]
[312234678,1705697449200,-500.0,0.00041095,31]
[312234681,1705697449209,-500.0,0.00041095,31]
[312234682,1705697449219,-500.0,0.00041095,31]
[312234685,1705697449228,-24141.45,0.00041095,14]
[312234687,1705697449237,-479.11039133,0.00041095,31]
[312234689,1705697449246,-631.74,0.00041095,31]
[312234690,1705697449255,-500.0,0.00041095,31]
[312234692,1705697449264,-500.0,0.00041095,31]
[312234694,1705697449273,-286.11047609,0.00041095,31]
[312234696,1705697449282,-525.11121153,0.00041095,31]
[312234698,1705697449291,-500.0,0.00041095,31]
[312234700,1705697449300,-500.0,0.00041095,31]
[312234702,1705697449309,-500.0,0.00041095,31]
[312234704,1705697449318,-500.38761768,0.00041095,31]
[312234706,1705697449327,-509.91150569,0.00041095,31]
[312234709,1705697449337,-576.45744162,0.00041095,31]
[312234711,1705697449346,-500.0,0.00041095,31]
[312234712,1705697449356,-256.88557354,0.00041095,31]
[312234715,1705697449365,-500.0,0.00041095,31]
[312234717,1705697449375,-4200.15,0.00041095,31]
[312234719,1705697449384,-2170.21,0.00041095,31]
[312234720,1705697449393,-500.0,0.00041095,31]
[312234723,1705697449403,-500.0,0.00041095,31]
[312234725,1705697449413,-195.77201688,0.00041095,31]
[312234727,1705697449422,-500.0,0.00041095,31]
[312234729,1705697449430,-500.0,0.00041095,31]
[312234731,1705697449444,-500.0,0.00041095,31]
[312234733,1705697449452,-510.24,0.00041095,31]
[312234734,1705697449461,-556.26137122,0.00041095,31]
[312234737,1705697449471,-1595.49,0.00041095,31]
[312234739,1705697449480,-500.0,0.00041095,31]
[312234741,1705697449489,-500.93177506,0.00041095,31]
[312234743,1705697449498,-523.61,0.00041095,31]
[312234745,1705697449506,-500.0,0.00041095,31]
[312234747,1705697449516,-500.0,0.00041095,31]
[312234749,1705697449525,-500.0,0.00041095,31]
[312234751,1705697449534,-500.0,0.00041095,31]
[312234753,1705697449544,-500.0,0.00041095,31]
[312234755,1705697449555,-500.0,0.00041095,31]
[312234757,1705697449563,-511.0322068,0.00041095,31]
[312234759,1705697449572,-206.29199228,0.00041095,31]
[312234761,1705697449582,-500.0,0.00041095,31]
[312234763,1705697449591,-505.24307839,0.00041095,31]
[312234764,1705697449600,-500.0,0.00041095,31]
[312234766,1705697449608,-500.0,0.00041095,31]
[312234768,1705697449618,-500.0,0.00041095,31]
[312234770,1705697449629,-500.0,0.00041095,31]
[312234773,1705697449639,-311.18358302,0.00041095,31]
[312234775,1705697449648,-528.38089854,0.00041095,31]
[312234777,1705697449658,-500.0,0.00041095,31]
[312234784,1705697449718,-500.34598322,0.00041095,31]
[312234787,1705697449728,-500.0,0.00041095,31]
[312234789,1705697449737,-500.0,0.00041095,31]
[312234791,1705697449747,-500.0,0.00041095,31]
[312234793,1705697449756,-500.0,0.00041095,31]
[312234795,1705697449765,-500.0,0.00041095,31]
[312234797,1705697449774,-500.0,0.00041095,31]
[312234799,1705697449783,-500.0,0.00041095,31]
[312234801,1705697449792,-500.0,0.00041095,31]
[312234803,1705697449800,-500.0,0.00041095,31]
[312234805,1705697449810,-500.0,0.00041095,31]
[312234807,1705697449819,-156.71468372,0.00041095,31]
[312234809,1705697449828,-500.0,0.00041095,31]
[312234811,1705697449837,-500.0,0.00041095,31]
[312234813,1705697449846,-500.0,0.00041095,31]
[312234815,1705697449855,-500.0,0.00041095,31]
[312234817,1705697449864,-469.635359,0.00041095,31]
[312234818,1705697449873,-744.11,0.00041095,31]
[312234820,1705697449883,-423.73578706,0.00041095,31]
[312234822,1705697449892,-500.0,0.00041095,31]
[312234824,1705697449902,-500.0,0.00041095,31]